[Event "elllobregat Open-A 2019"]
[Site "El Prat de Llobregat"]
[Date "2019.12.07"]
[Round "5.16"]
[White "Pigeat, Alexandre"]
[Black "Girish, A. Koushik"]
[Result "0-1"]
[ECO "E46"]
[WhiteElo "2357"]
[BlackElo "2506"]
[Annotator "ChessBase"]
[PlyCount "82"]
[EventDate "2019.12.03"]
[EventType "swiss"]
[EventCountry "ESP"]
[SourceTitle "playchess.com"]
[Source "ChessBase"]
[SourceQuality "1"]
[TimeControl "40/5400+30:1800+30"]

1. d4 {[%emt 0:00:00]} Nf6 {[%emt 0:00:03]} 2. c4 {[%emt 0:00:00]} e6 {[%emt 0:00:08]} 3. Nc3 {[%emt 0:00:05]} Bb4 {[%emt 0:00:07]} 4. e3 {[%emt 0:00:16]} O-O {[%emt 0:00:14]} 5. Nge2 {[%emt 0:00:14]} Re8 {[%emt 0:00:06]} 6. a3 {[%emt 0:00:15]} Bf8 {[%emt 0:00:07]} 7. Ng3 {[%emt 0:03:15]} d5 {[%emt 0:00:09]} 8. cxd5 {[%emt 0:03:05]} exd5 {[%emt 0:00:09]} 9. Bd3 {[%emt 0:00:49]} a5 {[%emt 0:00:25]} 10. O-O {[%emt 0:01:14]} Na6 {[%emt 0:00:24]} 11. Bc2 {[%emt 0:07:30]} c6 {[%emt 0:08:13]} 12. e4 {[%emt 0:18:23]} Nxe4 {[%emt 0:04:54]} 13. Ngxe4 {[%emt 0:02:03]} dxe4 {[%emt 0:00:06]} 14. Bxe4 {[%emt 0:00:14]} Nc7 {[%emt 0:07:22]} 15. Bf3 {[%emt 0:12:34]} Be6 {[%emt 0:01:52]} 16. Be3 {[%emt 0:05:15]} Nd5 {[%emt 0:03:32]} 17. Rc1 {[%emt 0:01:37]} g6 {[%emt 0:10:09]} 18. Qd2 {[%emt 0:01:45]} Nxe3 {[%emt 0:13:35]} 19. fxe3 {[%emt 0:00:54]} Bh6 {[%emt 0:00:05]} 20. Kh1 {[%emt 0:02:16]} Bc4 {[%emt 0:01:13]} 21. Rfe1 {[%emt 0:01:06]} Qe7 {[%emt 0:00:46]} 22. Nd1 {[%emt 0:01:14]} Bb3 {[%emt 0:00:22]} 23. Rc3 {[%emt 0:00:32]} a4 {[%emt 0:00:04]} 24. Qf2 {[%emt 0:01:50]} Rad8 {[%emt 0:00:49]} 25. Rf1 {[%emt 0:00:38]} f5 {[%emt 0:01:58]} 26. Qg3 {[%emt 0:21:21]} Kg7 {[%emt 0:06:06]} 27. h3 Qd6 {[%emt 0:13:09]} 28. Qe1 {[%emt 0:05:39]} f4 {[%emt 0:01:30]} 29. Nf2 {[%emt 0:01:12]} fxe3 {[%emt 0:01:29]} 30. Ng4 {[%emt 0:01:28]} Bf4 {[%emt 0:03:36]} 31. Be2 {[%emt 0:04:15]} h5 {[%emt 0:07:59]} 32. Ne5 {[%emt 0:00:23]} Bxe5 {[%emt 0:00:24]} 33. dxe5 {[%emt 0:00:34]} Qxe5 {[%emt 0:03:41]} 34. Rf3 {[%emt 0:00:24]} Qd4 {[%emt 0:04:40]} 35. Qf1 {[%emt 0:01:51]} Bd5 {[%emt 0:02:29]} 36. Rf4 {[%emt 0:01:33]} Qe5 {[%emt 0:01:03]} 37. Kg1 {[%emt 0:01:11]} Rf8 {[%emt 0:00:20]} 38. Rxf8 {[%emt 0:00:10]} Rxf8 {[%emt 0:00:04]} 39. Qe1 {[%emt 0:00:30]} Rf2 {[%emt 0:00:26]} 40. Bf3 {[%emt 0:00:00]} Bxf3 {[%emt 0:00:00]} 41. Rxe3 {[%emt 0:01:07]} Rxg2+ {[%emt 0:00:22]} 0-1

[Event "elllobregat Open-A 2019"]
[Site "El Prat de Llobregat"]
[Date "2019.12.07"]
[Round "5.17"]
[White "Movsziszian, Karen"]
[Black "Gual Pascual, Antonio"]
[Result "1-0"]
[ECO "A36"]
[WhiteElo "2476"]
[BlackElo "2349"]
[Annotator "ChessBase"]
[PlyCount "115"]
[EventDate "2019.12.03"]
[EventType "swiss"]
[EventCountry "ESP"]
[SourceTitle "playchess.com"]
[Source "ChessBase"]
[SourceQuality "1"]
[TimeControl "40/5400+30:1800+30"]

1. g3 {[%emt 0:00:00]} c5 {[%emt 0:00:00]} 2. Bg2 {[%emt 0:00:00]} Nc6 {[%emt 0:00:14]} 3. c4 {[%emt 0:00:51]} g6 {[%emt 0:01:49]} 4. Nc3 {[%emt 0:00:10]} Bg7 {[%emt 0:00:09]} 5. d3 {[%emt 0:00:33]} e6 {[%emt 0:03:00]} 6. e4 {[%emt 0:00:06]} Nge7 {[%emt 0:00:30]} 7. Nge2 {[%emt 0:01:44]} d6 {[%emt 0:01:56]} 8. O-O {[%emt 0:00:21]} O-O {[%emt 0:00:11]} 9. a3 {[%emt 0:04:25]} b6 {[%emt 0:08:45]} 10. Rb1 {[%emt 0:00:55]} Bb7 {[%emt 0:00:29]} 11. b4 {[%emt 0:00:21]} Qd7 {[%emt 0:01:14]} 12. Be3 {[%emt 0:19:02]} Nd4 {[%emt 0:01:38]} 13. Qd2 {[%emt 0:02:58]} Rac8 {[%emt 0:22:42]} 14. Bh6 {[%emt 0:14:07]} Nxe2+ {[%emt 0:05:22]} 15. Nxe2 {[%emt 0:00:03]} Bxh6 {[%emt 0:00:13]} 16. Qxh6 {[%emt 0:00:02]} d5 {[%emt 0:00:12]} 17. cxd5 {[%emt 0:04:28]} exd5 {[%emt 0:00:59]} 18. bxc5 {[%emt 0:00:54]} dxe4 {[%emt 0:05:42]} 19. dxe4 {[%emt 0:01:12]} Rxc5 {[%emt 0:00:15]} 20. Rfd1 {[%emt 0:03:13]} Qc7 {[%emt 0:06:32]} 21. h4 {[%emt 0:06:14]} Rc2 {[%emt 0:15:51]} 22. Nd4 {[%emt 0:00:50]} Rc4 {[%emt 0:07:28]} 23. Nf3 {[%emt 0:13:46]} f6 {[%emt 0:04:14]} 24. Rd4 {[%emt 0:03:48]} Rxd4 {[%emt 0:07:09]} 25. Nxd4 {[%emt 0:00:03]} Qc4 {[%emt 0:00:40]} 26. Rc1 {[%emt 0:08:08]} Qxd4 {[%emt 0:01:33]} 27. Rc7 {[%emt 0:00:03]} Qd1+ {[%emt 0:01:57]} 28. Kh2 {[%emt 0:00:26]} Qh5 {[%emt 0:00:26]} 29. Qxh5 {[%emt 0:00:54]} gxh5 {[%emt 0:00:05]} 30. Rxb7 {[%emt 0:00:06]} Nc8 {[%emt 0:00:16]} 31. Bh3 {[%emt 0:03:14]} Nd6 {[%emt 0:00:19]} 32. Be6+ {[%emt 0:00:57]} Kh8 {[%emt 0:00:16]} 33. Rxa7 {[%emt 0:00:11]} Re8 {[%emt 0:00:42]} 34. Bf7 {[%emt 0:03:19]} Rxe4 {[%emt 0:00:19]} 35. Bxh5 {[%emt 0:00:02]} Re5 {[%emt 0:00:43]} 36. Bf3 {[%emt 0:02:03]} Nc4 {[%emt 0:00:41]} 37. h5 {[%emt 0:01:33]} h6 {[%emt 0:00:16]} 38. Kg2 {[%emt 0:02:01]} Kg8 {[%emt 0:01:35]} 39. a4 {[%emt 0:00:05]} Rc5 {[%emt 0:02:04]} 40. Bd1 {[%emt 0:00:00]} Na5 {[%emt 0:00:00]} 41. Ra6 {[%emt 0:07:36]} Rc6 {[%emt 0:00:57]} 42. Bf3 {[%emt 0:00:26]} Rd6 {[%emt 0:00:09]} 43. Be4 {[%emt 0:00:45]} Nc4 {[%emt 0:00:40]} 44. Ra8+ {[%emt 0:00:17]} Kf7 {[%emt 0:01:37]} 45. Ra7+ {[%emt 0:00:13]} Ke6 {[%emt 0:00:18]} 46. Rh7 {[%emt 0:00:22]} Ke5 {[%emt 0:00:24]} 47. Bg6 {[%emt 0:00:29]} Rd2 {[%emt 0:01:29]} 48. Kf3 {[%emt 0:01:40]} Kd6 {[%emt 0:01:16]} 49. g4 {[%emt 0:09:49]} Ra2 {[%emt 0:01:02]} 50. Bf5 {[%emt 0:04:39]} Rxa4 {[%emt 0:02:19]} 51. Rxh6 {[%emt 0:02:26]} Ke5 {[%emt 0:00:17]} 52. Rh7 {[%emt 0:01:05]} Ra3+ {[%emt 0:00:34]} 53. Kg2 {[%emt 0:01:45]} Nd6 {[%emt 0:00:48]} 54. Bg6 {[%emt 0:04:08]} f5 {[%emt 0:03:22]} 55. Re7+ {[%emt 0:00:05]} Kf6 {[%emt 0:00:06]} 56. Rd7 {[%emt 0:00:02]} Ke6 {[%emt 0:00:15]} 57. Rd8 {[%emt 0:00:13]} fxg4 {[%emt 0:00:12]} 58. h6 {[%emt 0:00:13]} 1-0

[Event "elllobregat Open-A 2019"]
[Site "El Prat de Llobregat"]
[Date "2019.12.07"]
[Round "5.18"]
[White "Mendonca, Leon Luke"]
[Black "Kulkarni Bhakti"]
[Result "1/2-1/2"]
[ECO "A06"]
[WhiteElo "2398"]
[BlackElo "2418"]
[Annotator "NA"]
[PlyCount "104"]
[EventDate "2019.12.03"]
[EventType "swiss"]
[EventCountry "ESP"]
[SourceTitle "playchess.com"]
[Source "ChessBase"]
[SourceQuality "1"]
[TimeControl "40/5400+30:1800+30"]

1. Nf3 d5 {[%emt 0:01:03]} 2. c4 {[%emt 0:00:04]} c6 {[%emt 0:00:59]} 3. d4 {[%emt 0:00:35]} Nf6 {[%emt 0:00:28]} 4. g3 {[%emt 0:00:11]} Bg4 {[%emt 0:01:55]} 5. Ne5 {[%emt 0:00:03]} Bf5 {[%emt 0:02:08]} 6. cxd5 {[%emt 0:00:07]} Qxd5 {[%emt 0:09:49]} 7. f3 {[%emt 0:00:12]} Bxb1 {[%emt 0:02:46]} 8. Rxb1 {[%emt 0:00:28]} e6 {[%emt 0:02:09]} 9. a3 {[%emt 0:05:23]} Be7 {[%emt 0:05:29]} 10. e4 {[%emt 0:01:30]} Qd8 {[%emt 0:00:17]} 11. Be3 {[%emt 0:01:10]} Nbd7 {[%emt 0:02:42]} 12. Nd3 {[%emt 0:03:53]} O-O {[%emt 0:01:56]} 13. Kf2 {[%emt 0:01:42]} a5 {[%emt 0:09:03]} 14. Rc1 {[%emt 0:00:58]} a4 {[%emt 0:01:27]} 15. Be2 {[%emt 0:00:58]} Ne8 {[%emt 0:06:46]} 16. Kg2 {[%emt 0:12:00]} Nd6 {[%emt 0:04:42]} 17. Qd2 {[%emt 0:03:03]} h6 {[%emt 0:04:36]} 18. Nc5 {[%emt 0:15:52]} Nxc5 {[%emt 0:17:01]} 19. dxc5 {[%emt 0:00:24]} Nb5 {[%emt 0:01:26]} 20. Qb4 {[%emt 0:02:37]} Qc7 {[%emt 0:05:47]} 21. Rhd1 {[%emt 0:06:38]} Rfd8 {[%emt 0:01:42]} 22. Rxd8+ {[%emt 0:08:17]} Rxd8 {[%emt 0:00:54]} 23. Rd1 {[%emt 0:01:09]} Bf6 {[%emt 0:06:55]} 24. Rxd8+ Qxd8 {[%emt 0:00:03]} 25. Bxb5 {[%emt 0:19:31]} cxb5 {[%emt 0:00:05]} 26. Qxb5 Qd1 {[%emt 0:00:27]} 27. e5 {[%emt 0:09:00]} Qc2+ {[%emt 0:01:42]} 28. Bf2 {[%emt 0:00:16]} Bxe5 {[%emt 0:00:46]} 29. Qxb7 {[%emt 0:02:01]} Bxb2 {[%emt 0:01:27]} 30. Qb8+ {[%emt 0:02:58]} Kh7 {[%emt 0:00:03]} 31. Qb4 {[%emt 0:00:34]} e5 {[%emt 0:03:53]} 32. Qe4+ {[%emt 0:00:47]} Qxe4 {[%emt 0:00:02]} 33. fxe4 {[%emt 0:00:03]} Bxa3 {[%emt 0:00:07]} 34. c6 {[%emt 0:00:03]} Bd6 {[%emt 0:00:05]} 35. Bb6 {[%emt 0:00:06]} a3 {[%emt 0:00:23]} 36. c7 {[%emt 0:00:05]} a2 {[%emt 0:00:24]} 37. c8=Q {[%emt 0:00:05]} a1=Q {[%emt 0:00:05]} 38. Qf5+ {[%emt 0:00:03]} Kg8 {[%emt 0:00:12]} 39. Qc8+ {[%emt 0:00:05]} Kh7 {[%emt 0:03:34]} 40. Qf5+ {[%emt 0:00:00]} Kg8 {[%emt 0:00:00]} 41. Qc8+ {[%emt 0:00:03]} Bf8 {[%emt 0:09:10]} 42. Bc5 {[%emt 0:00:31]} Qa2+ {[%emt 0:00:06]} 43. Kh3 {[%emt 0:00:05]} Qe6+ {[%emt 0:00:14]} 44. Qxe6 {[%emt 0:00:04]} fxe6 {[%emt 0:00:05]} 45. Be3 {[%emt 0:00:03]} Kf7 {[%emt 0:00:29]} 46. Kg4 {[%emt 0:00:02]} g6 {[%emt 0:00:53]} 47. Kf3 {[%emt 0:00:04]} h5 {[%emt 0:01:11]} 48. h3 {[%emt 0:00:12]} Bb4 {[%emt 0:00:44]} 49. g4 {[%emt 0:00:20]} Kf6 {[%emt 0:00:30]} 50. Bc1 {[%emt 0:00:22]} Bc3 {[%emt 0:00:14]} 51. Be3 {[%emt 0:00:09]} Bd4 {[%emt 0:01:27]} 52. Bd2 {[%emt 0:00:11]} Bb2 {[%emt 0:00:25]} 1/2-1/2

[Event "elllobregat Open-A 2019"]
[Site "El Prat de Llobregat"]
[Date "2019.12.09"]
[Round "7.9"]
[White "Akash Pc, Iyer"]
[Black "Sosa, Tomas"]
[Result "0-1"]
[ECO "A40"]
[WhiteElo "2415"]
[BlackElo "2520"]
[Annotator "RC"]
[PlyCount "78"]
[EventDate "2019.12.03"]
[EventType "swiss"]
[EventCountry "ESP"]
[SourceTitle "playchess.com"]
[Source "ChessBase"]
[SourceQuality "1"]
[TimeControl "40/5400+30:1800+30"]

1. d4 {[%emt 0:00:00]} e6 {[%emt 0:02:50]} 2. c4 {[%emt 0:00:06]} b6 {[%emt 0:00:08]} 3. Nc3 {[%emt 0:02:52]} Bb7 {[%emt 0:00:52]} 4. e3 {[%emt 0:03:55]} Nf6 {[%emt 0:10:12]} 5. Nge2 {[%emt 0:04:04]} g6 {[%emt 0:01:38]} 6. Qc2 {[%emt 0:04:18]} Bg7 {[%emt 0:14:36]} 7. e4 {[%emt 0:07:29]} O-O {[%emt 0:00:10]} 8. Bg5 {[%emt 0:11:34]} h6 {[%emt 0:00:28]} 9. Bh4 {[%emt 0:00:06]} g5 {[%emt 0:08:55]} 10. Bg3 {[%emt 0:00:21]} d5 {[%emt 0:00:09]} 11. e5 {[%emt 0:01:03]} Ne4 {[%emt 0:09:54]} 12. O-O-O {[%emt 0:16:58]} Nxc3 {[%emt 0:08:20]} 13. Nxc3 {[%emt 0:00:11]} Nc6 {[%emt 0:00:22]} 14. h4 {[%emt 0:12:59]} dxc4 {[%emt 0:03:38]} 15. Qd2 {[%emt 0:01:36]} Nb4 {[%emt 0:09:03]} 16. hxg5 {[%emt 0:03:48]} Qxg5 {[%emt 0:01:08]} 17. Bf4 {[%emt 0:00:20]} Qg6 {[%emt 0:01:21]} 18. Bxh6 {[%emt 0:03:50]} Rad8 {[%emt 0:08:33]} 19. Bxg7 {[%emt 0:05:04]} Kxg7 {[%emt 0:00:08]} 20. Rh4 {[%emt 0:00:41]} c5 {[%emt 0:01:23]} 21. Rh3 {[%emt 0:05:01]} Rxd4 {[%emt 0:01:55]} 22. Rg3 {[%emt 0:00:06]} Qxg3 {[%emt 0:01:40]} 23. fxg3 Rxd2 {[%emt 0:00:03]} 24. Rxd2 {[%emt 0:00:12]} Nc6 {[%emt 0:04:40]} 25. Rd7 {[%emt 0:02:37]} Rb8 {[%emt 0:00:16]} 26. Nb5 {[%emt 0:01:34]} Nxe5 {[%emt 0:00:12]} 27. Rc7 {[%emt 0:00:08]} a6 {[%emt 0:00:53]} 28. Nd6 {[%emt 0:00:07]} Bd5 {[%emt 0:00:23]} 29. Nc8 {[%emt 0:00:57]} Kf8 {[%emt 0:03:55]} 30. a4 {[%emt 0:00:17]} Ke8 {[%emt 0:04:18]} 31. Nd6+ {[%emt 0:00:26]} Kf8 {[%emt 0:00:18]} 32. Nc8 {[%emt 0:00:04]} Ke8 {[%emt 0:00:04]} 33. Nd6+ {[%emt 0:00:18]} Kd8 {[%emt 0:01:25]} 34. Ra7 {[%emt 0:00:09]} f5 {[%emt 0:00:27]} 35. Kd2 {[%emt 0:01:00]} b5 {[%emt 0:00:48]} 36. axb5 {[%emt 0:00:39]} axb5 {[%emt 0:00:03]} 37. Ke3 {[%emt 0:00:46]} Rb6 {[%emt 0:00:08]} 38. Nf7+ {[%emt 0:00:32]} Nxf7 {[%emt 0:00:05]} 39. Rxf7 {[%emt 0:00:06]} Ra6 {[%emt 0:01:52]} 0-1

[Event "elllobregat Open-A 2019"]
[Site "El Prat de Llobregat"]
[Date "2019.12.10"]
[Round "8.2"]
[White "Erigaisi Arjun"]
[Black "Iniyan, P."]
[Result "1-0"]
[ECO "A35"]
[WhiteElo "2604"]
[BlackElo "2392"]
[Annotator "RC"]
[PlyCount "65"]
[EventDate "2019.12.03"]
[EventType "swiss"]
[EventCountry "ESP"]
[SourceTitle "playchess.com"]
[Source "ChessBase"]
[SourceQuality "1"]
[TimeControl "40/5400+30:1800+30"]

1. c4 {[%emt 0:05:52]} c5 {[%emt 0:02:05]} 2. Nc3 {[%emt 0:00:54]} Nc6 {[%emt 0:00:07]} 3. Nf3 {[%emt 0:00:12]} e5 {[%emt 0:00:28]} 4. e3 {[%emt 0:00:08]} d6 {[%emt 0:03:00]} 5. d4 {[%emt 0:00:22]} exd4 {[%emt 0:12:52]} 6. exd4 {[%emt 0:00:07]} Bg4 7. Be2 {[%emt 0:21:04]} Nf6 {[%emt 0:12:08]} 8. Be3 {[%emt 0:02:00]} Be7 {[%emt 0:02:50]} 9. d5 {[%emt 0:01:10]} Bxf3 10. Bxf3 {[%emt 0:01:44]} Ne5 {[%emt 0:02:52]} 11. Be2 {[%emt 0:00:07]} Qd7 {[%emt 0:00:17]} 12. f4 {[%emt 0:10:58]} Ng6 13. g4 {[%emt 0:11:16]} h5 {[%emt 0:09:04]} 14. g5 {[%emt 0:03:52]} Ng4 {[%emt 0:01:36]} 15. Bd2 {[%emt 0:01:06]} Nh4 {[%emt 0:13:05]} 16. Qa4 {[%emt 0:00:06]} Qxa4 {[%emt 0:13:43]} 17. Nxa4 {[%emt 0:00:30]} g6 {[%emt 0:17:02]} 18. h3 Ng2+ {[%emt 0:01:38]} 19. Kf1 {[%emt 0:02:05]} N4e3+ {[%emt 0:00:04]} 20. Kf2 {[%emt 0:00:11]} Nxf4 {[%emt 0:00:08]} 21. Bxe3 {[%emt 0:02:02]} Bxg5 {[%emt 0:00:02]} 22. Kf3 {[%emt 0:00:27]} Nxe2 {[%emt 0:00:15]} 23. Rae1 {[%emt 0:00:18]} Kd7 24. Rxe2 {[%emt 0:00:07]} Bf6 {[%emt 0:01:28]} 25. Nc3 {[%emt 0:00:54]} Rae8 {[%emt 0:03:02]} 26. Ne4 {[%emt 0:01:28]} Bd8 {[%emt 0:00:04]} 27. Bf4 {[%emt 0:00:48]} f5 {[%emt 0:00:03]} 28. Ng5 {[%emt 0:00:08]} Bxg5 {[%emt 0:00:13]} 29. Bxg5 {[%emt 0:00:07]} Rxe2 {[%emt 0:00:06]} 30. Kxe2 {[%emt 0:00:04]} Re8+ {[%emt 0:00:06]} 31. Kf2 {[%emt 0:00:15]} b5 {[%emt 0:00:51]} 32. Re1 {[%emt 0:00:35]} Re5 {[%emt 0:00:37]} 33. Bf4 1-0

[Event "elllobregat Open-A 2019"]
[Site "El Prat de Llobregat"]
[Date "2019.12.10"]
[Round "8.3"]
[White "Bartel, Mateusz"]
[Black "Kjartansson, Gudmundur"]
[Result "1-0"]
[ECO "C18"]
[WhiteElo "2525"]
[BlackElo "2324"]
[Annotator "ChessBase"]
[PlyCount "83"]
[EventDate "2019.12.03"]
[EventType "swiss"]
[EventCountry "ESP"]
[SourceTitle "playchess.com"]
[Source "ChessBase"]
[SourceQuality "1"]
[TimeControl "40/5400+30:1800+30"]

1. e4 {[%emt 0:00:00]} e6 {[%emt 0:00:31]} 2. d4 {[%emt 0:00:00]} d5 {[%emt 0:00:06]} 3. Nc3 {[%emt 0:00:00]} Bb4 {[%emt 0:00:22]} 4. e5 {[%emt 0:00:00]} c5 {[%emt 0:00:10]} 5. a3 {[%emt 0:00:01]} Bxc3+ {[%emt 0:00:03]} 6. bxc3 {[%emt 0:00:07]} Qa5 {[%emt 0:00:20]} 7. Bd2 {[%emt 0:00:09]} Qa4 {[%emt 0:00:03]} 8. h4 {[%emt 0:00:09]} Nc6 {[%emt 0:02:15]} 9. h5 {[%emt 0:00:10]} h6 {[%emt 0:00:28]} 10. Nf3 {[%emt 0:00:54]} Nge7 {[%emt 0:04:05]} 11. dxc5 {[%emt 0:05:43]} Qe4+ {[%emt 0:03:02]} 12. Qe2 {[%emt 0:06:09]} Qxc2 {[%emt 0:00:18]} 13. Qb5 {[%emt 0:01:31]} Qe4+ {[%emt 0:04:47]} 14. Be2 {[%emt 0:02:55]} a6 {[%emt 0:12:24]} 15. Qb1 {[%emt 0:01:30]} g5 {[%emt 0:03:58]} 16. hxg6 {[%emt 0:11:21]} Nxg6 {[%emt 0:01:02]} 17. Be3 {[%emt 0:01:17]} Qa4 {[%emt 0:12:26]} 18. Rh5 {[%emt 0:14:50]} Qa5 {[%emt 0:07:16]} 19. Qb3 {[%emt 0:03:26]} d4 {[%emt 0:11:18]} 20. Nxd4 {[%emt 0:01:34]} Nxd4 {[%emt 0:00:24]} 21. Bxd4 {[%emt 0:00:08]} Nf4 {[%emt 0:00:06]} 22. Rh2 {[%emt 0:14:41]} Nxe2 {[%emt 0:00:19]} 23. Kxe2 {[%emt 0:00:05]} Qb5+ {[%emt 0:12:42]} 24. Qxb5+ {[%emt 0:00:48]} axb5 {[%emt 0:00:04]} 25. Be3 {[%emt 0:00:23]} Bd7 {[%emt 0:02:54]} 26. Rxh6 {[%emt 0:14:11]} Rg8 {[%emt 0:09:26]} 27. g4 {[%emt 0:03:37]} Bc6 {[%emt 0:01:52]} 28. f3 {[%emt 0:00:30]} Ra4 {[%emt 0:03:51]} 29. Rh7 {[%emt 0:01:44]} Rc4 {[%emt 0:00:58]} 30. Bd4 {[%emt 0:00:04]} Ke7 {[%emt 0:02:18]} 31. Rd1 {[%emt 0:02:27]} Ra4 {[%emt 0:00:51]} 32. Bf2 {[%emt 0:03:29]} Bd5 {[%emt 0:00:47]} 33. Bh4+ {[%emt 0:08:50]} Ke8 {[%emt 0:00:03]} 34. Rxd5 {[%emt 0:00:05]} exd5 {[%emt 0:00:02]} 35. e6 {[%emt 0:00:06]} Rf8 {[%emt 0:03:46]} 36. e7 {[%emt 0:01:59]} Rg8 {[%emt 0:00:03]} 37. Rh5 {[%emt 0:00:09]} f6 {[%emt 0:01:31]} 38. Bxf6 {[%emt 0:00:10]} Kf7 {[%emt 0:00:23]} 39. Bh4 {[%emt 0:01:10]} Rxa3 {[%emt 0:01:23]} 40. Rf5+ {[%emt 0:00:00]} Ke6 {[%emt 0:00:00]} 41. Rf6+ {[%emt 0:01:50]} Ke5 {[%emt 0:03:18]} 42. Rg6 1-0

[Event "elllobregat Open-A 2019"]
[Site "El Prat de Llobregat"]
[Date "2019.12.10"]
[Round "8.6"]
[White "Sosa, Tomas"]
[Black "Verstraeten, Rein"]
[Result "1/2-1/2"]
[ECO "B23"]
[WhiteElo "2481"]
[BlackElo "2365"]
[Annotator "ChessBase"]
[PlyCount "30"]
[EventDate "2019.12.03"]
[EventType "swiss"]
[EventCountry "ESP"]
[SourceTitle "playchess.com"]
[Source "ChessBase"]
[SourceQuality "1"]
[TimeControl "40/5400+30:1800+30"]

1. e4 {[%emt 0:07:39]} c5 2. Nc3 {[%emt 0:00:06]} a6 {[%emt 0:00:00]} 3. Nge2 {[%emt 0:00:06]} Nf6 {[%emt 0:00:12]} 4. g3 {[%emt 0:00:56]} d5 {[%emt 0:05:00]} 5. exd5 Nxd5 6. Bg2 {[%emt 0:03:06]} Nxc3 {[%emt 0:00:51]} 7. bxc3 {[%emt 0:00:43]} e6 8. O-O {[%emt 0:09:10]} Bd6 {[%emt 0:05:04]} 9. d4 {[%emt 0:06:56]} Nd7 {[%emt 0:06:29]} 10. Bf4 Bxf4 {[%emt 0:00:49]} 11. Nxf4 {[%emt 0:03:44]} O-O {[%emt 0:10:07]} 12. Re1 {[%emt 0:13:45]} Rb8 13. a4 b5 {[%emt 0:20:30]} 14. axb5 {[%emt 0:01:24]} axb5 {[%emt 0:00:44]} 15. dxc5 Nxc5 1/2-1/2

[Event "elllobregat Open-A 2019"]
[Site "El Prat de Llobregat"]
[Date "2019.12.10"]
[Round "8.8"]
[White "Alsina Leal, Daniel"]
[Black "Narciso Dublan, Marc"]
[Result "0-1"]
[ECO "A06"]
[WhiteElo "2387"]
[BlackElo "2581"]
[Annotator "RC"]
[PlyCount "117"]
[EventDate "2019.12.03"]
[EventType "swiss"]
[EventCountry "ESP"]
[SourceTitle "playchess.com"]
[Source "ChessBase"]
[SourceQuality "1"]
[TimeControl "40/5400+30:1800+30"]

1. Nf3 {[%emt 0:00:00]} d5 {[%emt 0:00:00]} 2. g3 {[%emt 0:00:00]} Bg4 {[%emt 0:00:24]} 3. Bg2 {[%emt 0:00:00]} Nd7 {[%emt 0:01:41]} 4. c4 {[%emt 0:00:08]} e6 {[%emt 0:00:43]} 5. cxd5 {[%emt 0:00:21]} exd5 {[%emt 0:00:12]} 6. O-O {[%emt 0:00:12]} Ngf6 {[%emt 0:00:57]} 7. h3 {[%emt 0:00:24]} Bxf3 {[%emt 0:01:09]} 8. Bxf3 {[%emt 0:00:06]} Be7 {[%emt 0:00:25]} 9. Bg2 {[%emt 0:02:01]} O-O {[%emt 0:00:22]} 10. d3 {[%emt 0:00:48]} Nc5 {[%emt 0:02:24]} 11. e3 {[%emt 0:03:40]} Qd7 {[%emt 0:09:07]} 12. Qc2 {[%emt 0:04:27]} a5 {[%emt 0:01:49]} 13. Rd1 {[%emt 0:03:57]} Rfd8 {[%emt 0:07:51]} 14. Nd2 {[%emt 0:01:49]} a4 {[%emt 0:00:53]} 15. Nf3 {[%emt 0:02:14]} Ne6 {[%emt 0:01:35]} 16. Bd2 {[%emt 0:02:42]} c5 {[%emt 0:00:45]} 17. Ne5 {[%emt 0:12:11]} Qd6 {[%emt 0:05:56]} 18. f4 {[%emt 0:01:23]} b5 {[%emt 0:18:25]} 19. Be1 {[%emt 0:02:22]} Rac8 {[%emt 0:01:47]} 20. b3 {[%emt 0:14:21]} Qa6 {[%emt 0:03:18]} 21. bxa4 {[%emt 0:04:38]} bxa4 {[%emt 0:00:17]} 22. Rab1 {[%emt 0:14:56]} Bd6 {[%emt 0:00:58]} 23. Nf3 {[%emt 0:01:43]} c4 {[%emt 0:01:02]} 24. dxc4 {[%emt 0:04:08]} Rxc4 {[%emt 0:00:52]} 25. Qe2 {[%emt 0:04:21]} Qc8 {[%emt 0:04:16]} 26. Rb5 {[%emt 0:12:49]} Nc7 {[%emt 0:10:44]} 27. Rb2 {[%emt 0:00:45]} Re8 {[%emt 0:00:11]} 28. Rd4 {[%emt 0:02:24]} Qa6 {[%emt 0:17:15]} 29. Rxc4 {[%emt 0:00:23]} dxc4 {[%emt 0:00:07]} 30. Rc2 {[%emt 0:01:30]} Ncd5 {[%emt 0:03:35]} 31. Qxc4 {[%emt 0:00:15]} Qxc4 {[%emt 0:00:23]} 32. Rxc4 {[%emt 0:00:06]} a3 {[%emt 0:00:03]} 33. Rc6 {[%emt 0:02:15]} Bf8 {[%emt 0:01:20]} 34. Ne5 {[%emt 0:01:33]} Nxe3 {[%emt 0:00:27]} 35. Bf3 {[%emt 0:00:35]} Rb8 {[%emt 0:01:09]} 36. Nd3 {[%emt 0:01:43]} Rd8 {[%emt 0:02:20]} 37. Rc3 {[%emt 0:00:41]} Nf5 {[%emt 0:02:27]} 38. Bf2 {[%emt 0:00:30]} Nd4 {[%emt 0:00:44]} 39. Kg2 {[%emt 0:00:23]} Nxf3 {[%emt 0:01:02]} 40. Kxf3 {[%emt 0:00:00]} g6 {[%emt 0:00:00]} 41. Ne1 {[%emt 0:13:46]} Rb8 {[%emt 0:05:10]} 42. Rb3 {[%emt 0:05:57]} Rxb3+ {[%emt 0:12:23]} 43. axb3 {[%emt 0:00:04]} a2 {[%emt 0:02:20]} 44. Bd4 {[%emt 0:00:59]} Nd7 {[%emt 0:01:06]} 45. Nc2 {[%emt 0:01:04]} Nc5 {[%emt 0:02:08]} 46. Na1 {[%emt 0:01:08]} f5 {[%emt 0:00:24]} 47. Ke3 {[%emt 0:04:56]} Kf7 {[%emt 0:00:41]} 48. g4 {[%emt 0:04:26]} Ke6 {[%emt 0:01:51]} 49. Kd2 {[%emt 0:02:47]} Kd5 {[%emt 0:00:24]} 50. Be5 {[%emt 0:00:37]} Ke4 {[%emt 0:02:01]} 51. gxf5 {[%emt 0:00:10]} gxf5 {[%emt 0:00:07]} 52. Kc3 {[%emt 0:00:35]} Nd3 {[%emt 0:00:33]} 53. Bh8 {[%emt 0:00:19]} Nxf4 {[%emt 0:02:58]} 54. Nc2 {[%emt 0:00:24]} Nxh3 {[%emt 0:01:19]} 55. b4 {[%emt 0:00:44]} f4 {[%emt 0:01:03]} 56. Kd2 {[%emt 0:00:27]} f3 {[%emt 0:00:50]} 57. b5 {[%emt 0:00:04]} Bc5 {[%emt 0:00:30]} 58. Ke1 {[%emt 0:00:59]} Kd3 {[%emt 0:00:58]} 59. Na1 {[%emt 0:00:16] Kd4} 0-1